[Event "Titled Tuesday Blitz July 18 Early 2023"]
[White "Zaksaite, Salomeja"]
[Black "Sreyas Payyappat"]
[WhiteFideId "12801496"]
[BlackFideId "46674969"]
[WhiteElo "2308"]
[BlackElo "2522"]
[Result "0-1"]
[Round "7"]
[TimeControl "180+2"]
[Date "2023.07.18"]
[WhiteClock "0:00:00"]
[BlackClock "0:00:48"]
[Board "112"]

1. e4 {[%clk 0:02:46]}  c6 {[%clk 0:02:55]} 2. Ne2 {[%clk 0:02:44]}  d5 {[%clk 0:02:56]} 3. e5 {[%clk 0:02:39]}  Bf5 {[%clk 0:02:53]} 4. Ng3 {[%clk 0:02:37]}  Bg6 {[%clk 0:02:51]} 5. h4 {[%clk 0:02:37]}  h5 {[%clk 0:02:48]} 6. Be2 {[%clk 0:02:36]}  e6 {[%clk 0:02:46]} 7. d4 {[%clk 0:02:26]}  Be7 {[%clk 0:02:43]} 8. Nxh5 {[%clk 0:02:22]}  Bxh5 {[%clk 0:02:41]} 9. Bxh5 {[%clk 0:02:21]}  g6 {[%clk 0:02:41]} 10. Bf3 {[%clk 0:02:13]}  Bxh4 {[%clk 0:02:38]} 11. g3 {[%clk 0:02:13]}  Bf6 {[%clk 0:02:35]} 12. exf6 {[%clk 0:02:12]}  Rxh1+ {[%clk 0:02:33]} 13. Bxh1 {[%clk 0:02:10]}  Nxf6 {[%clk 0:02:34]} 14. Bg5 {[%clk 0:02:07]}  Nbd7 {[%clk 0:02:35]} 15. Qf3 {[%clk 0:02:07]}  Rc8 {[%clk 0:02:32]} 16. Nd2 {[%clk 0:02:04]}  c5 {[%clk 0:02:28]} 17. dxc5 {[%clk 0:02:02]}  Rxc5 {[%clk 0:02:29]} 18. O-O-O {[%clk 0:02:01]}  Ke7 {[%clk 0:02:17]} 19. Ne4 {[%clk 0:00:36]}  dxe4 {[%clk 0:01:43]} 20. Bxf6+ {[%clk 0:00:10]}  Ke8 {[%clk 0:01:39]} 21. Qf4 {[%clk 0:00:04]}  Qxf6 {[%clk 0:01:34]} 22. Qxe4 {[%clk 0:00:04]}  Qxf2 {[%clk 0:01:24]} 23. g4 {[%clk 0:00:03]}  Ke7 {[%clk 0:01:04]} 24. c3 {[%clk 0:00:03]}  f5 {[%clk 0:00:58]} 25. Qxb7 {[%clk 0:00:02]}  Qf4+ {[%clk 0:00:53]} 26. Kb1 {[%clk 0:00:02]}  Rc7 {[%clk 0:00:52]} 27. Qb5 {[%clk 0:00:01]}  fxg4 {[%clk 0:00:49]} 28. Qa5 {[%clk 0:00:00]}  Qf5+ {[%clk 0:00:48]} 0-1


[Site "https://www.chess.com"]

[Event "Titled Tuesday Blitz July 18 Early 2023"]
[White "Levitan, Ronit"]
[Black "Vyatkin, Dmitry"]
[WhiteFideId "2815109"]
[BlackFideId "4171900"]
[WhiteElo "2268"]
[BlackElo "2516"]
[Result "0-1"]
[Round "7"]
[TimeControl "180+2"]
[Date "2023.07.18"]
[WhiteClock "0:00:19"]
[BlackClock "0:00:05"]
[Board "115"]

1. e4 {[%clk 0:02:59]}  e6 {[%clk 0:02:59]} 2. d4 {[%clk 0:02:57]}  d5 {[%clk 0:03:00]} 3. Nd2 {[%clk 0:02:58]}  c5 {[%clk 0:02:59]} 4. exd5 {[%clk 0:02:58]}  Qxd5 {[%clk 0:02:58]} 5. Ngf3 {[%clk 0:02:58]}  cxd4 {[%clk 0:02:59]} 6. Bc4 {[%clk 0:02:58]}  Qd6 {[%clk 0:02:58]} 7. O-O {[%clk 0:02:58]}  Nf6 {[%clk 0:02:58]} 8. Nb3 {[%clk 0:02:59]}  Nc6 {[%clk 0:02:58]} 9. Nfxd4 {[%clk 0:02:59]}  Nxd4 {[%clk 0:02:59]} 10. Nxd4 {[%clk 0:03:00]}  a6 {[%clk 0:02:58]} 11. Re1 {[%clk 0:02:56]}  Bd7 {[%clk 0:02:51]} 12. c3 {[%clk 0:02:54]}  Qc7 {[%clk 0:02:41]} 13. Bf1 {[%clk 0:02:43]}  Bd6 {[%clk 0:02:33]} 14. g3 {[%clk 0:02:40]}  O-O {[%clk 0:02:32]} 15. Bg2 {[%clk 0:02:40]}  Rad8 {[%clk 0:02:24]} 16. Bg5 {[%clk 0:02:38]}  Be5 {[%clk 0:01:41]} 17. Qb3 {[%clk 0:02:29]}  b5 {[%clk 0:01:34]} 18. Rad1 {[%clk 0:02:23]}  h6 {[%clk 0:01:31]} 19. Be3 {[%clk 0:02:15]}  Rc8 {[%clk 0:01:10]} 20. a3 {[%clk 0:01:47]}  Rfd8 {[%clk 0:01:10]} 21. Qc2 {[%clk 0:01:47]}  Be8 {[%clk 0:01:09]} 22. Qe2 {[%clk 0:01:46]}  Bd6 {[%clk 0:01:07]} 23. Bc1 {[%clk 0:01:44]}  Qc5 {[%clk 0:01:02]} 24. Nb3 {[%clk 0:01:37]}  Qc7 {[%clk 0:00:54]} 25. Be3 {[%clk 0:01:35]}  Rb8 {[%clk 0:00:44]} 26. Qf3 {[%clk 0:01:32]}  Nd5 {[%clk 0:00:30]} 27. Qh5 {[%clk 0:01:09]}  Nxe3 {[%clk 0:00:29]} 28. Rxe3 {[%clk 0:01:06]}  Bc6 {[%clk 0:00:25]} 29. Bxc6 {[%clk 0:01:03]}  Qxc6 {[%clk 0:00:25]} 30. Red3 {[%clk 0:01:03]}  Be7 {[%clk 0:00:23]} 31. Qe2 {[%clk 0:01:02]}  Qc7 {[%clk 0:00:21]} 32. Nd4 {[%clk 0:00:59]}  Bf6 {[%clk 0:00:18]} 33. Nf3 {[%clk 0:00:58]}  Rxd3 {[%clk 0:00:17]} 34. Rxd3 {[%clk 0:00:57]}  Rd8 {[%clk 0:00:18]} 35. Rxd8+ {[%clk 0:00:57]}  Qxd8 {[%clk 0:00:18]} 36. Kg2 {[%clk 0:00:57]}  Qd5 {[%clk 0:00:17]} 37. Qe3 {[%clk 0:00:57]}  g5 {[%clk 0:00:14]} 38. g4 {[%clk 0:00:55]}  Kg7 {[%clk 0:00:13]} 39. Qb6 {[%clk 0:00:52]}  h5 {[%clk 0:00:09]} 40. h3 {[%clk 0:00:51]}  hxg4 {[%clk 0:00:09]} 41. hxg4 {[%clk 0:00:52]}  Qe4 {[%clk 0:00:09]} 42. Kg3 {[%clk 0:00:52]}  Qb1 {[%clk 0:00:08]} 43. Qe3 {[%clk 0:00:43]}  Qxb2 {[%clk 0:00:06]} 44. Nxg5 {[%clk 0:00:44]}  Qxc3 {[%clk 0:00:06]} 45. Qxc3 {[%clk 0:00:29]}  Bxc3 {[%clk 0:00:06]} 46. Ne4 {[%clk 0:00:29]}  Bb2 {[%clk 0:00:06]} 47. Nc5 {[%clk 0:00:29]}  a5 {[%clk 0:00:06]} 48. Nb3 {[%clk 0:00:28]}  a4 {[%clk 0:00:02]} 49. Nc5 {[%clk 0:00:22]}  Bxa3 {[%clk 0:00:03]} 50. Ne4 {[%clk 0:00:19]}  Bb4 {[%clk 0:00:01]} 51. f4 {[%clk 0:00:17]}  a3 {[%clk 0:00:01]} 52. Nf2 {[%clk 0:00:16]}  a2 {[%clk 0:00:02]} 53. Nd3 {[%clk 0:00:17]}  a1=Q {[%clk 0:00:01]} 54. Nxb4 {[%clk 0:00:18]}  Qc3+ {[%clk 0:00:02]} 55. Kh4 {[%clk 0:00:19]}  Qxb4 {[%clk 0:00:02]} 56. g5 {[%clk 0:00:20]}  Qxf4+ {[%clk 0:00:02]} 57. Kh5 {[%clk 0:00:20]}  Qf3+ {[%clk 0:00:02]} 58. Kh4 {[%clk 0:00:20]}  Qg2 {[%clk 0:00:03]} 59. g6 {[%clk 0:00:19]}  b4 {[%clk 0:00:03]} 60. gxf7 {[%clk 0:00:19]}  Kxf7 {[%clk 0:00:04]} 61. Kh5 {[%clk 0:00:19]}  Kf6 {[%clk 0:00:05]} 62. Kh4 {[%clk 0:00:19]}  Kf5 {[%clk 0:00:04]} 63. Kh5 {[%clk 0:00:19]}  Qg5# {[%clk 0:00:05]} 0-1


[Site "https://www.chess.com"]

[Event "Titled Tuesday Blitz July 18 Early 2023"]
[White "ArtemDyachuk"]
[Black "Hernandez Bermudez, Ulises Eduardo"]
[BlackFideId "3902510"]
[WhiteElo "2514"]
[BlackElo "2266"]
[Result "1-0"]
[Round "7"]
[TimeControl "180+2"]
[Date "2023.07.18"]
[WhiteClock "0:00:39"]
[BlackClock "0:00:05"]
[Board "117"]

1. e4 {[%clk 0:03:00]}  e6 {[%clk 0:03:00]} 2. d4 {[%clk 0:02:57]}  d5 {[%clk 0:03:00]} 3. e5 {[%clk 0:02:56]}  c5 {[%clk 0:03:00]} 4. c3 {[%clk 0:02:56]}  Nc6 {[%clk 0:02:59]} 5. Nf3 {[%clk 0:02:55]}  Qb6 {[%clk 0:02:56]} 6. a3 {[%clk 0:02:55]}  Nh6 {[%clk 0:02:56]} 7. b4 {[%clk 0:02:54]}  cxd4 {[%clk 0:02:56]} 8. Bxh6 {[%clk 0:02:52]}  gxh6 {[%clk 0:02:56]} 9. cxd4 {[%clk 0:02:52]}  Bd7 {[%clk 0:02:35]} 10. Be2 {[%clk 0:02:51]}  Rc8 {[%clk 0:02:35]} 11. O-O {[%clk 0:02:46]}  Bg7 {[%clk 0:02:35]} 12. Nc3 {[%clk 0:02:40]}  Nxe5 {[%clk 0:02:21]} 13. Nxe5 {[%clk 0:02:24]}  Rxc3 {[%clk 0:01:59]} 14. Rc1 {[%clk 0:02:21]}  Rxc1 {[%clk 0:01:55]} 15. Qxc1 {[%clk 0:02:20]}  Qxd4 {[%clk 0:01:52]} 16. Nxd7 {[%clk 0:02:18]}  Kxd7 {[%clk 0:01:52]} 17. Rd1 {[%clk 0:02:17]}  Qb6 {[%clk 0:01:47]} 18. a4 {[%clk 0:02:09]}  Rc8 {[%clk 0:01:41]} 19. Qf4 {[%clk 0:02:03]}  Ke7 {[%clk 0:01:33]} 20. Bh5 {[%clk 0:02:00]}  Bf6 {[%clk 0:01:29]} 21. h3 {[%clk 0:01:53]}  Rc2 {[%clk 0:01:23]} 22. Rf1 {[%clk 0:01:36]}  Rb2 {[%clk 0:01:01]} 23. Qxh6 {[%clk 0:01:29]}  Bd4 {[%clk 0:00:19]} 24. Qxh7 {[%clk 0:01:27]}  Rxf2 {[%clk 0:00:18]} 25. Rxf2 {[%clk 0:01:24]}  Bxf2+ {[%clk 0:00:19]} 26. Kf1 {[%clk 0:01:25]}  Bg3 {[%clk 0:00:17]} 27. Qxf7+ {[%clk 0:01:23]}  Kd6 {[%clk 0:00:18]} 28. Qf8+ {[%clk 0:01:21]}  Ke5 {[%clk 0:00:18]} 29. Qg7+ {[%clk 0:01:20]}  Kf5 {[%clk 0:00:15]} 30. Qg6+ {[%clk 0:01:16]}  Kf4 {[%clk 0:00:14]} 31. Qg4+ {[%clk 0:01:16]}  Ke5 {[%clk 0:00:15]} 32. Qxg3+ {[%clk 0:01:16]}  Kf6 {[%clk 0:00:15]} 33. Qf4+ {[%clk 0:01:14]}  Ke7 {[%clk 0:00:16]} 34. Qf7+ {[%clk 0:01:12]}  Kd6 {[%clk 0:00:16]} 35. Be2 {[%clk 0:01:11]}  Qe3 {[%clk 0:00:14]} 36. h4 {[%clk 0:00:45]}  Qc1+ {[%clk 0:00:11]} 37. Kf2 {[%clk 0:00:45]}  Qc3 {[%clk 0:00:08]} 38. h5 {[%clk 0:00:44]}  Qd4+ {[%clk 0:00:08]} 39. Kg3 {[%clk 0:00:40]}  Qe5+ {[%clk 0:00:05]} 40. Qf4 {[%clk 0:00:39]} 1-0


[Site "https://www.chess.com"]

[Event "Titled Tuesday Blitz July 18 Early 2023"]
[White "Da Silva Junior, Sediney Mari"]
[Black "Yeritsyan, Hayk"]
[WhiteFideId "2132079"]
[BlackFideId "13307320"]
[WhiteElo "2210"]
[BlackElo "2513"]
[Result "1-0"]
[Round "7"]
[TimeControl "180+2"]
[Date "2023.07.18"]
[WhiteClock "0:00:03"]
[BlackClock "0:00:00"]
[Board "118"]

1. e4 {[%clk 0:03:00]}  c6 {[%clk 0:02:54]} 2. d4 {[%clk 0:02:58]}  d5 {[%clk 0:02:54]} 3. f3 {[%clk 0:02:58]}  e6 {[%clk 0:02:54]} 4. Nc3 {[%clk 0:02:58]}  Nf6 {[%clk 0:02:54]} 5. Bg5 {[%clk 0:02:56]}  Be7 {[%clk 0:02:54]} 6. Qd3 {[%clk 0:02:56]}  O-O {[%clk 0:02:47]} 7. e5 {[%clk 0:02:51]}  Nfd7 {[%clk 0:02:46]} 8. Bxe7 {[%clk 0:02:51]}  Qxe7 {[%clk 0:02:47]} 9. h4 {[%clk 0:02:51]}  a6 {[%clk 0:02:47]} 10. h5 {[%clk 0:02:51]}  c5 {[%clk 0:02:47]} 11. h6 {[%clk 0:02:51]}  g6 {[%clk 0:02:47]} 12. dxc5 {[%clk 0:02:44]}  Nxe5 {[%clk 0:02:40]} 13. Qd4 {[%clk 0:02:42]}  Nbc6 {[%clk 0:02:40]} 14. Qf4 {[%clk 0:02:36]}  f6 {[%clk 0:01:53]} 15. O-O-O {[%clk 0:02:15]}  Qxc5 {[%clk 0:01:51]} 16. g4 {[%clk 0:02:12]}  Bd7 {[%clk 0:01:40]} 17. g5 {[%clk 0:02:10]}  f5 {[%clk 0:01:21]} 18. Nge2 {[%clk 0:01:40]}  Nc4 {[%clk 0:01:13]} 19. Nd4 {[%clk 0:01:07]}  Nxd4 {[%clk 0:00:46]} 20. Bxc4 {[%clk 0:01:01]}  Nc6 {[%clk 0:00:35]} 21. Nxd5 {[%clk 0:00:43]}  b5 {[%clk 0:00:18]} 22. Bb3 {[%clk 0:00:34]}  Na5 {[%clk 0:00:18]} 23. Nf6+ {[%clk 0:00:32]}  Rxf6 {[%clk 0:00:18]} 24. gxf6 {[%clk 0:00:25]}  Rc8 {[%clk 0:00:17]} 25. Rh2 {[%clk 0:00:11]}  Nxb3+ {[%clk 0:00:14]} 26. axb3 {[%clk 0:00:10]}  Be8 {[%clk 0:00:15]} 27. Qd4 {[%clk 0:00:08]}  Qc7 {[%clk 0:00:14]} 28. f7+ {[%clk 0:00:07]}  Qxf7 {[%clk 0:00:12]} 29. Re2 {[%clk 0:00:05]}  Rc7 {[%clk 0:00:11]} 30. Qd8 {[%clk 0:00:03]}  Re7 {[%clk 0:00:10]} 31. Red2 {[%clk 0:00:02]}  e5 {[%clk 0:00:10]} 32. Qb6 {[%clk 0:00:02]}  Re6 {[%clk 0:00:09]} 33. Rd6 {[%clk 0:00:02]}  Re7 {[%clk 0:00:09]} 34. Rd8 {[%clk 0:00:02]}  Qe6 {[%clk 0:00:07]} 35. R1d6 {[%clk 0:00:02]}  Qf7 {[%clk 0:00:06]} 36. Qc6 {[%clk 0:00:02]}  Kf8 {[%clk 0:00:06]} 37. Qc5 {[%clk 0:00:02]}  g5 {[%clk 0:00:04]} 38. Rd5 {[%clk 0:00:02]}  g4 {[%clk 0:00:04]} 39. Rxe5 {[%clk 0:00:03]}  gxf3 {[%clk 0:00:00]} 40. Rxf5 {[%clk 0:00:03]} 1-0


[Site "https://www.chess.com"]

[Event "Titled Tuesday Blitz July 18 Early 2023"]
[White "Przybylski, Wojciech"]
[Black "Chitlange Sakshi"]
[WhiteFideId "1117599"]
[BlackFideId "35002899"]
[WhiteElo "2577"]
[BlackElo "2427"]
[Result "0-1"]
[Round "7"]
[TimeControl "180+2"]
[Date "2023.07.18"]
[WhiteClock "0:00:00"]
[BlackClock "0:00:08"]
[Board "121"]

1. d4 {[%clk 0:03:00]}  f5 {[%clk 0:02:58]} 2. g4 {[%clk 0:03:00]}  fxg4 {[%clk 0:02:58]} 3. e4 {[%clk 0:03:00]}  d6 {[%clk 0:02:53]} 4. Nc3 {[%clk 0:02:57]}  Nf6 {[%clk 0:02:53]} 5. Bg5 {[%clk 0:02:54]}  e6 {[%clk 0:02:48]} 6. Bd3 {[%clk 0:02:53]}  Be7 {[%clk 0:02:48]} 7. e5 {[%clk 0:02:51]}  dxe5 {[%clk 0:02:48]} 8. dxe5 {[%clk 0:02:51]}  Nd5 {[%clk 0:02:48]} 9. Bxe7 {[%clk 0:02:51]}  Qxe7 {[%clk 0:02:48]} 10. Qxg4 {[%clk 0:02:51]}  Nxc3 {[%clk 0:02:43]} 11. bxc3 {[%clk 0:02:50]}  O-O {[%clk 0:02:41]} 12. Ne2 {[%clk 0:02:49]}  Nc6 {[%clk 0:02:37]} 13. f4 {[%clk 0:02:47]}  Bd7 {[%clk 0:02:29]} 14. Rg1 {[%clk 0:02:47]}  Rad8 {[%clk 0:02:17]} 15. Qh5 {[%clk 0:02:45]}  Rf5 {[%clk 0:02:14]} 16. Bxf5 {[%clk 0:02:40]}  exf5 {[%clk 0:02:15]} 17. Rd1 {[%clk 0:02:37]}  Rf8 {[%clk 0:01:50]} 18. Qg5 {[%clk 0:02:33]}  Qf7 {[%clk 0:01:48]} 19. h4 {[%clk 0:02:26]}  Be6 {[%clk 0:01:48]} 20. Rd3 {[%clk 0:02:19]}  Re8 {[%clk 0:01:36]} 21. h5 {[%clk 0:02:11]}  Bxa2 {[%clk 0:01:29]} 22. Nd4 {[%clk 0:02:10]}  Nxd4 {[%clk 0:01:26]} 23. Rxd4 {[%clk 0:02:11]}  Be6 {[%clk 0:01:23]} 24. h6 {[%clk 0:02:07]}  g6 {[%clk 0:01:23]} 25. Rd8 {[%clk 0:02:03]}  c6 {[%clk 0:01:13]} 26. Rg3 {[%clk 0:01:57]}  Bd5 {[%clk 0:01:09]} 27. Rd3 {[%clk 0:01:55]}  b5 {[%clk 0:01:05]} 28. c4 {[%clk 0:01:48]}  bxc4 {[%clk 0:01:03]} 29. Ra3 {[%clk 0:01:47]}  Qf8 {[%clk 0:00:44]} 30. Rxe8 {[%clk 0:01:45]}  Qxe8 {[%clk 0:00:45]} 31. Rxa7 {[%clk 0:01:40]}  Qb8 {[%clk 0:00:45]} 32. Rg7+ {[%clk 0:01:01]}  Kh8 {[%clk 0:00:45]} 33. Rxh7+ {[%clk 0:01:01]}  Kxh7 {[%clk 0:00:45]} 34. Qe7+ {[%clk 0:00:58]}  Kxh6 {[%clk 0:00:45]} 35. Qh4+ {[%clk 0:00:56]}  Kg7 {[%clk 0:00:45]} 36. Qf6+ {[%clk 0:00:53]}  Kh7 {[%clk 0:00:23]} 37. e6 {[%clk 0:00:51]}  Qb1+ {[%clk 0:00:20]} 38. Kd2 {[%clk 0:00:50]}  Qb4+ {[%clk 0:00:20]} 39. Ke2 {[%clk 0:00:44]}  Qd6 {[%clk 0:00:16]} 40. Qh4+ {[%clk 0:00:26]}  Kg7 {[%clk 0:00:16]} 41. e7 {[%clk 0:00:27]}  Qe6+ {[%clk 0:00:16]} 42. Kd2 {[%clk 0:00:25]}  Kf7 {[%clk 0:00:12]} 43. Qh7+ {[%clk 0:00:20]}  Kf6 {[%clk 0:00:12]} 44. Qh8+ {[%clk 0:00:21]}  Kxe7 {[%clk 0:00:12]} 45. Qg7+ {[%clk 0:00:21]}  Kd6 {[%clk 0:00:12]} 46. Qf8+ {[%clk 0:00:22]}  Kd7 {[%clk 0:00:12]} 47. Qg7+ {[%clk 0:00:21]}  Kc8 {[%clk 0:00:12]} 48. Qf8+ {[%clk 0:00:21]}  Kc7 {[%clk 0:00:13]} 49. Qg7+ {[%clk 0:00:20]}  Kb6 {[%clk 0:00:13]} 50. Qd4+ {[%clk 0:00:19]}  Kb7 {[%clk 0:00:13]} 51. Qg7+ {[%clk 0:00:19]}  Ka6 {[%clk 0:00:14]} 52. Qa1+ {[%clk 0:00:19]}  Kb5 {[%clk 0:00:14]} 53. Qb2+ {[%clk 0:00:20]}  Kc5 {[%clk 0:00:15]} 54. Qa3+ {[%clk 0:00:20]}  Kb6 {[%clk 0:00:15]} 55. Qb2+ {[%clk 0:00:21]}  Kc7 {[%clk 0:00:15]} 56. Qg7+ {[%clk 0:00:21]}  Qd7 {[%clk 0:00:16]} 57. Qe5+ {[%clk 0:00:20]}  Qd6 {[%clk 0:00:16]} 58. Qg7+ {[%clk 0:00:21]}  Bf7+ {[%clk 0:00:15]} 59. Kc1 {[%clk 0:00:19]}  Qxf4+ {[%clk 0:00:15]} 60. Kb1 {[%clk 0:00:19]}  Qf1+ {[%clk 0:00:12]} 61. Ka2 {[%clk 0:00:19]}  Kb6 {[%clk 0:00:10]} 62. Qxf7 {[%clk 0:00:19]}  Qe2 {[%clk 0:00:10]} 63. Kb2 {[%clk 0:00:15]}  Qe5+ {[%clk 0:00:10]} 64. Kb1 {[%clk 0:00:10]}  g5 {[%clk 0:00:10]} 65. Qg8 {[%clk 0:00:08]}  g4 {[%clk 0:00:09]} 66. Kc1 {[%clk 0:00:07]}  Qe3+ {[%clk 0:00:08]} 67. Kb2 {[%clk 0:00:07]}  Qd4+ {[%clk 0:00:08]} 68. Kc1 {[%clk 0:00:07]}  Qe5 {[%clk 0:00:08]} 69. Qxc4 {[%clk 0:00:06]}  g3 {[%clk 0:00:06]} 70. Qb3+ {[%clk 0:00:06]}  Kc7 {[%clk 0:00:06]} 71. Qf7+ {[%clk 0:00:06]}  Kd6 {[%clk 0:00:07]} 72. Qf8+ {[%clk 0:00:05]}  Kd5 {[%clk 0:00:07]} 73. Qf7+ {[%clk 0:00:05]}  Ke4 {[%clk 0:00:08]} 74. Qc4+ {[%clk 0:00:02]}  Ke3 {[%clk 0:00:08]} 75. Qb3+ {[%clk 0:00:01]}  Kf2 {[%clk 0:00:09]} 76. Qc4 {[%clk 0:00:00]}  Qe3+ {[%clk 0:00:08]} 0-1


[Site "https://www.chess.com"]

[Event "Titled Tuesday Blitz July 18 Early 2023"]
[White "Estrada Nieto, Julian"]
[Black "Slovineanu, Viacheslav"]
[WhiteFideId "5101018"]
[BlackFideId "13900510"]
[WhiteElo "2515"]
[BlackElo "2381"]
[Result "1-0"]
[Round "7"]
[TimeControl "180+2"]
[Date "2023.07.18"]
[WhiteClock "0:00:18"]
[BlackClock "0:00:00"]
[Board "124"]

1. e4 {[%clk 0:03:00]}  c6 {[%clk 0:02:58]} 2. d4 {[%clk 0:03:00]}  d5 {[%clk 0:02:59]} 3. exd5 {[%clk 0:03:00]}  cxd5 {[%clk 0:02:59]} 4. c3 {[%clk 0:03:00]}  Nf6 {[%clk 0:02:56]} 5. Bf4 {[%clk 0:03:00]}  Nc6 {[%clk 0:02:53]} 6. Nf3 {[%clk 0:03:00]}  Bg4 {[%clk 0:02:53]} 7. Bd3 {[%clk 0:02:59]}  e6 {[%clk 0:02:51]} 8. Nbd2 {[%clk 0:02:59]}  Bxf3 {[%clk 0:02:46]} 9. Nxf3 {[%clk 0:02:59]}  Bd6 {[%clk 0:02:46]} 10. Bxd6 {[%clk 0:02:59]}  Qxd6 {[%clk 0:02:47]} 11. O-O {[%clk 0:02:59]}  O-O {[%clk 0:02:47]} 12. Qb3 {[%clk 0:02:58]}  Qc7 {[%clk 0:02:43]} 13. Rae1 {[%clk 0:02:57]}  a6 {[%clk 0:02:43]} 14. Ne5 {[%clk 0:02:57]}  Nxe5 {[%clk 0:02:41]} 15. dxe5 {[%clk 0:02:55]}  Nd7 {[%clk 0:02:42]} 16. Qc2 {[%clk 0:02:49]}  g6 {[%clk 0:02:34]} 17. Qe2 {[%clk 0:02:45]}  Rfd8 {[%clk 0:02:20]} 18. f4 {[%clk 0:02:34]}  d4 {[%clk 0:02:20]} 19. cxd4 {[%clk 0:02:18]}  Qb6 {[%clk 0:01:43]} 20. Qf2 {[%clk 0:02:16]}  Nf8 {[%clk 0:01:43]} 21. Be4 {[%clk 0:02:10]}  Rxd4 {[%clk 0:00:28]} 22. Rd1 {[%clk 0:02:05]}  Rad8 {[%clk 0:00:29]} 23. Rxd4 {[%clk 0:02:05]}  Qxd4 {[%clk 0:00:24]} 24. Qxd4 {[%clk 0:02:03]}  Rxd4 {[%clk 0:00:24]} 25. Bxb7 {[%clk 0:02:03]}  a5 {[%clk 0:00:25]} 26. b3 {[%clk 0:01:53]}  Nd7 {[%clk 0:00:24]} 27. Ba6 {[%clk 0:01:42]}  Kg7 {[%clk 0:00:23]} 28. g3 {[%clk 0:01:31]}  g5 {[%clk 0:00:20]} 29. Bb5 {[%clk 0:01:22]}  gxf4 {[%clk 0:00:17]} 30. Bxd7 {[%clk 0:01:21]}  Rxd7 {[%clk 0:00:16]} 31. Rxf4 {[%clk 0:01:13]}  Rd2 {[%clk 0:00:10]} 32. Ra4 {[%clk 0:01:10]}  Rd5 {[%clk 0:00:09]} 33. Re4 {[%clk 0:01:10]}  Rd2 {[%clk 0:00:09]} 34. a3 {[%clk 0:01:01]}  Kg6 {[%clk 0:00:09]} 35. g4 {[%clk 0:00:51]}  h6 {[%clk 0:00:08]} 36. h4 {[%clk 0:00:50]}  Rb2 {[%clk 0:00:08]} 37. b4 {[%clk 0:00:44]}  axb4 {[%clk 0:00:08]} 38. Rxb4 {[%clk 0:00:43]}  Ra2 {[%clk 0:00:08]} 39. a4 {[%clk 0:00:39]}  h5 {[%clk 0:00:08]} 40. gxh5+ {[%clk 0:00:38]}  Kxh5 {[%clk 0:00:09]} 41. Kf1 {[%clk 0:00:34]}  Kg6 {[%clk 0:00:09]} 42. Rf4 {[%clk 0:00:30]}  Kg7 {[%clk 0:00:02]} 43. Ke1 {[%clk 0:00:30]}  Kg6 {[%clk 0:00:02]} 44. Kd1 {[%clk 0:00:29]}  Kg7 {[%clk 0:00:02]} 45. Re4 {[%clk 0:00:20]}  Kg6 {[%clk 0:00:02]} 46. Rf4 {[%clk 0:00:19]}  Kg7 {[%clk 0:00:02]} 47. Kc1 {[%clk 0:00:19]}  Re2 {[%clk 0:00:01]} 48. a5 {[%clk 0:00:18]}  Rxe5 {[%clk 0:00:01]} 49. Ra4 {[%clk 0:00:18]}  Rc5+ {[%clk 0:00:01]} 50. Kd2 {[%clk 0:00:17]}  Rc8 {[%clk 0:00:00]} 51. a6 {[%clk 0:00:18]} 1-0


[Site "https://www.chess.com"]

[Event "Titled Tuesday Blitz July 18 Early 2023"]
[White "ElenGajger"]
[Black "TomLiu777"]
[WhiteElo "2505"]
[BlackElo "2350"]
[Result "1-0"]
[Round "7"]
[TimeControl "180+2"]
[Date "2023.07.18"]
[WhiteClock "0:00:48"]
[BlackClock "0:00:00"]
[Board "126"]

1. e4 {[%clk 0:03:00]}  e6 {[%clk 0:02:55]} 2. d4 {[%clk 0:02:59]}  d5 {[%clk 0:02:53]} 3. Nc3 {[%clk 0:02:59]}  Bb4 {[%clk 0:02:51]} 4. e5 {[%clk 0:02:59]}  c5 {[%clk 0:02:52]} 5. a3 {[%clk 0:02:59]}  Ba5 {[%clk 0:02:52]} 6. dxc5 {[%clk 0:02:58]}  Bxc3+ {[%clk 0:02:50]} 7. bxc3 {[%clk 0:02:59]}  Ne7 {[%clk 0:02:49]} 8. Be3 {[%clk 0:02:59]}  Nd7 {[%clk 0:02:47]} 9. Nf3 {[%clk 0:02:59]}  Qc7 {[%clk 0:02:46]} 10. Qd4 {[%clk 0:02:57]}  Nf5 {[%clk 0:02:43]} 11. Qf4 {[%clk 0:02:53]}  Nxc5 {[%clk 0:02:40]} 12. Bb5+ {[%clk 0:02:51]}  Bd7 {[%clk 0:02:40]} 13. Bxc5 {[%clk 0:02:46]}  Qxc5 {[%clk 0:02:38]} 14. Bxd7+ {[%clk 0:02:45]}  Kxd7 {[%clk 0:02:37]} 15. O-O {[%clk 0:02:43]}  Qc4 {[%clk 0:02:14]} 16. Nd4 {[%clk 0:02:36]}  g6 {[%clk 0:02:07]} 17. Rfd1 {[%clk 0:02:25]}  Rac8 {[%clk 0:02:03]} 18. Rab1 {[%clk 0:02:24]}  b6 {[%clk 0:02:01]} 19. g4 {[%clk 0:02:10]}  Qxc3 {[%clk 0:01:51]} 20. gxf5 {[%clk 0:02:06]}  gxf5 {[%clk 0:01:51]} 21. Rb3 {[%clk 0:01:59]}  Rhg8+ {[%clk 0:01:50]} 22. Kh1 {[%clk 0:01:53]}  Qc4 {[%clk 0:01:42]} 23. Rg3 {[%clk 0:01:52]}  Rxg3 {[%clk 0:01:25]} 24. hxg3 {[%clk 0:01:49]}  Rg8 {[%clk 0:01:19]} 25. Kg2 {[%clk 0:01:35]}  Rg4 {[%clk 0:01:16]} 26. Qd2 {[%clk 0:01:35]}  h5 {[%clk 0:00:55]} 27. Nf3 {[%clk 0:01:26]}  h4 {[%clk 0:00:51]} 28. Nxh4 {[%clk 0:01:22]}  f4 {[%clk 0:00:39]} 29. Qd4 {[%clk 0:01:14]}  Qe2 {[%clk 0:00:29]} 30. Rd2 {[%clk 0:01:07]}  Rxg3+ {[%clk 0:00:27]} 31. Kh2 {[%clk 0:01:03]}  Qe1 {[%clk 0:00:06]} 32. fxg3 {[%clk 0:01:00]}  Qxg3+ {[%clk 0:00:06]} 33. Kh1 {[%clk 0:00:58]}  Qxh4+ {[%clk 0:00:04]} 34. Kg2 {[%clk 0:00:57]}  Qg3+ {[%clk 0:00:04]} 35. Kf1 {[%clk 0:00:57]}  f3 {[%clk 0:00:03]} 36. Qf2 {[%clk 0:00:56]}  Qh3+ {[%clk 0:00:03]} 37. Ke1 {[%clk 0:00:56]}  Qh1+ {[%clk 0:00:03]} 38. Qf1 {[%clk 0:00:56]}  Qh4+ {[%clk 0:00:02]} 39. Kd1 {[%clk 0:00:56]}  Qg4 {[%clk 0:00:02]} 40. Kc1 {[%clk 0:00:55]}  Qf4 {[%clk 0:00:02]} 41. Qf2 {[%clk 0:00:53]}  Ke7 {[%clk 0:00:01]} 42. Kb1 {[%clk 0:00:51]}  Qa4 {[%clk 0:00:02]} 43. Qxf3 {[%clk 0:00:50]}  Qb5+ {[%clk 0:00:02]} 44. Qb3 {[%clk 0:00:49]}  Qf1+ {[%clk 0:00:02]} 45. Ka2 {[%clk 0:00:49]}  Qf4 {[%clk 0:00:03]} 46. Rd3 {[%clk 0:00:49]}  Qxe5 {[%clk 0:00:03]} 47. Qc3 {[%clk 0:00:49]}  Qf5 {[%clk 0:00:02]} 48. Qc7+ {[%clk 0:00:49]}  Kf6 {[%clk 0:00:02]} 49. Qd8+ {[%clk 0:00:48]}  Ke5 {[%clk 0:00:00]} 50. Qc7+ {[%clk 0:00:48]} 1-0


[Site "https://www.chess.com"]